bitfinex/quotes_BTCUSD_20240901
["timestamp","ask_amount","ask_price","bid_price","bid_amount"]
[1725190945414,0.002818,58226.0,58225.0,0.44216521]
[1725190945618,0.002818,58226.0,58225.0,0.44016521]
[1725190946252,0.002818,58226.0,58225.0,0.42113709]
[1725190946685,0.002818,58226.0,58225.0,0.44016245]
[1725190947336,0.002818,58226.0,58225.0,0.43816245]
[1725190950547,0.002818,58226.0,58225.0,0.44216245]
[1725190951827,0.002818,58226.0,58225.0,0.43816245]
[1725190953279,0.002818,58226.0,58225.0,0.41913709]
[1725190953482,0.002818,58226.0,58225.0,0.43815294]
[1725190954258,0.002818,58226.0,58225.0,0.44215294]
[1725190955054,0.002818,58226.0,58225.0,0.43815294]
[1725190955671,0.002818,58226.0,58225.0,0.44215294]
[1725190956514,0.002818,58226.0,58225.0,0.49345002]
[1725190956760,0.002818,58226.0,58225.0,0.47443417]
[1725190956977,0.002818,58226.0,58225.0,0.49342864]
[1725190958397,0.002818,58226.0,58225.0,0.44213434]
[1725190959446,0.002818,58226.0,58225.0,0.43813434]
[1725190960076,0.002818,58226.0,58225.0,0.44213434]
[1725190960328,0.002818,58226.0,58225.0,0.51507579]
[1725190961230,0.002818,58226.0,58225.0,0.51907579]
[1725190962561,0.002818,58226.0,58225.0,0.44213434]
[1725190962767,0.32816395,58232.0,58231.0,0.017]
[1725190962973,0.49988995,58232.0,58231.0,0.12159725]
[1725190963151,0.49988995,58232.0,58231.0,0.14138901]
[1725190963578,0.171726,58232.0,58231.0,0.14138901]
[1725190963791,0.171726,58232.0,58231.0,0.13938901]
[1725190964857,0.272726,58232.0,58231.0,0.15238901]
[1725190965545,0.272726,58232.0,58231.0,0.23538901]
[1725190965938,0.273726,58232.0,58231.0,0.24438901]
[1725190970359,0.617179,58232.0,58231.0,0.09878901]
[1725190971421,0.617179,58232.0,58231.0,0.15013918]
[1725190972798,0.617179,58232.0,58231.0,0.17581427]
[1725190973978,0.617179,58232.0,58231.0,0.15681702]
[1725190974187,0.617179,58232.0,58231.0,0.17580007]
[1725190974630,0.617179,58232.0,58231.0,0.17579985]
[1725190977103,0.617179,58232.0,58231.0,0.17669965]
[1725190977311,0.617179,58232.0,58231.0,0.15771682]
[1725190977555,0.617179,58232.0,58231.0,0.0996764]
[1725190978189,0.617179,58232.0,58231.0,0.17675259]
[1725190978400,0.617179,58232.0,58231.0,0.0996764]
[1725190980021,0.002,58232.0,58231.0,0.1665764]
[1725190980225,0.002,58232.0,58231.0,0.4163054]
[1725190980434,0.002,58232.0,58231.0,0.5447706]
[1725190980660,0.002,58232.0,58231.0,0.5447628]
[1725190981288,0.002,58232.0,58231.0,0.54472635]
[1725190982134,0.002,58232.0,58231.0,0.37499735]
[1725190982346,0.581479,58232.0,58231.0,0.15373152]
[1725190982561,1.268385,58232.0,58231.0,0.10907712]
[1725190982829,1.268385,58232.0,58231.0,0.05769156]
[1725190983430,0.924932,58232.0,58231.0,0.07667207]
[1725190984086,0.924932,58232.0,58231.0,0.09565169]
[1725190984297,0.924932,58232.0,58231.0,0.07667118]
[1725190984510,0.924932,58232.0,58231.0,0.15374952]
[1725190986025,0.924932,58232.0,58231.0,0.1347699]
[1725190986212,0.924932,58232.0,58231.0,0.15374748]
[1725190986450,0.860632,58232.0,58231.0,0.15374748]
[1725190986901,0.173726,58232.0,58231.0,0.24130911]
[1725190987138,0.173726,58232.0,58231.0,0.26430857]
[1725190987344,0.173726,58232.0,58231.0,0.26431197]
[1725190987575,0.173726,58232.0,58231.0,0.1615686]
[1725190989511,0.173726,58232.0,58231.0,0.26431381]
[1725190989727,0.174544,58232.0,58231.0,0.1615686]
[1725190990352,0.174544,58232.0,58231.0,0.26435448]
[1725190991134,0.174544,58232.0,58231.0,0.16157563]
[1725190991759,0.002818,58232.0,58231.0,0.26436431]
[1725190991965,0.174544,58232.0,58231.0,0.26779867]
[1725190992171,0.174544,58232.0,58231.0,0.26436456]
[1725190992854,0.174544,58232.0,58231.0,0.16157563]
[1725190993083,0.174544,58232.0,58231.0,0.2643672]
[1725190993501,0.174544,58232.0,58231.0,0.16157563]
[1725190993698,0.174544,58232.0,58231.0,0.14259156]
[1725190993919,0.174544,58232.0,58231.0,0.16157709]
[1725190994123,0.174544,58232.0,58231.0,0.2453783]
[1725190994329,0.174544,58232.0,58231.0,0.1615778]
[1725190995242,0.174544,58232.0,58231.0,0.2643674]
[1725190995542,0.174544,58232.0,58231.0,0.1615778]
[1725190996261,0.174544,58232.0,58231.0,0.2643674]
[1725190997484,0.174544,58232.0,58231.0,0.2643685]
[1725190999717,0.174544,58232.0,58231.0,0.2024685]
[1725191000752,0.174544,58232.0,58231.0,0.18348116]
[1725191001188,0.174544,58232.0,58231.0,0.20247481]
[1725191003258,0.174544,58232.0,58231.0,0.09968521]
[1725191004067,0.92555,58232.0,58231.0,0.07468521]
[1725191004373,0.92555,58232.0,58231.0,0.07468668]
[1725191004511,0.92555,58232.0,58231.0,0.12810917]
[1725191004715,0.92555,58232.0,58231.0,0.12810957]
[1725191008410,0.86145,58232.0,58231.0,0.12810957]
[1725191009314,0.86145,58232.0,58231.0,0.10911405]
[1725191009511,0.86145,58232.0,58231.0,0.12810455]
[1725191009726,0.86145,58232.0,58231.0,0.07668206]
[1725191009939,0.86145,58232.0,58231.0,0.15380864]
[1725191010131,0.86145,58232.0,58231.0,0.15180864]
[1725191010578,0.86145,58232.0,58231.0,0.15380864]
[1725191010831,0.86145,58232.0,58231.0,0.12808595]
[1725191011244,0.86145,58232.0,58231.0,0.07668206]
[1725191011460,0.86145,58232.0,58231.0,0.12808528]
[1725191011680,0.86145,58232.0,58231.0,0.12808383]
[1725191011891,0.86145,58232.0,58231.0,0.07668061]
[1725191012224,0.86145,58232.0,58231.0,0.07468061]
[1725191012430,0.86145,58232.0,58231.0,0.12808161]
[1725191012841,1.269103,58232.0,58231.0,0.05769156]
[1725191013081,1.350103,58232.0,58231.0,0.05769156]
[1725191013301,1.450103,58232.0,58231.0,0.05769156]
[1725191013497,1.450103,58232.0,58231.0,0.0398998]
[1725191014587,1.450103,58232.0,58231.0,0.0378998]
[1725191014588,2.317845,58232.0,58231.0,0.0378998]
[1725191014814,2.091921,58232.0,58231.0,0.0378998]
[1725191016608,1.947956,58232.0,58231.0,0.0378998]
[1725191016860,1.450103,58232.0,58231.0,0.0398998]
[1725191017674,1.793556,58232.0,58231.0,0.0378998]
[1725191018078,2.317845,58232.0,58231.0,0.0378998]
[1725191021053,2.164058,58232.0,58231.0,0.0378998]
[1725191021300,2.148194,58232.0,58231.0,0.0378998]
[1725191023746,2.491647,58232.0,58231.0,0.0228998]
[1725191024741,2.491647,58232.0,58231.0,0.0138998]
[1725191024974,2.490647,58232.0,58231.0,0.0138998]
[1725191025212,2.489647,58232.0,58231.0,0.0008998]
[1725191025896,2.489647,58232.0,58231.0,0.0018998]
[1725191026957,2.489647,58232.0,58231.0,0.0098998]
[1725191026958,2.318103,58232.0,58231.0,0.0098998]
[1725191027179,2.489829,58232.0,58231.0,0.0098998]
[1725191029031,2.50781918,58232.0,58231.0,0.0098998]
[1725191029928,2.67747018,58232.0,58231.0,0.0098998]
[1725191035201,2.67828818,58232.0,58231.0,0.0098998]
[1725191047031,3.0649307,58232.0,58231.0,0.0098998]
[1725191047273,3.06527862,58232.0,58231.0,0.0098998]
[1725191049697,3.02174118,58232.0,58231.0,0.0098998]
[1725191051155,3.02174118,58232.0,58231.0,8e-07]
[1725191051357,2.49745218,58232.0,58231.0,8e-07]
[1725191058816,2.49745218,58232.0,58231.0,0.0009006]
[1725191059057,2.41645218,58232.0,58231.0,0.0009006]
[1725191059320,2.07299918,58232.0,58231.0,0.0009006]
[1725191059534,6.17314618,58232.0,58231.0,0.0009006]
[1725191060010,5.97555018,58232.0,58231.0,0.0009006]
[1725191064967,5.43514418,58232.0,58231.0,0.0009006]
[1725191066985,5.43514418,58232.0,58231.0,0.01552066]
[1725191067204,5.43514418,58232.0,58231.0,0.0009006]
[1725191070512,6.28600418,58232.0,58231.0,0.0009006]
[1725191070874,6.28600418,58232.0,58231.0,0.0059006]
[1725191070875,5.49909818,58232.0,58231.0,0.0059006]
[1725191071082,1.49446818,58232.0,58231.0,0.1589006]
[1725191071317,1.49446818,58232.0,58231.0,0.17479066]
[1725191072448,1.59446818,58232.0,58231.0,0.17479066]
[1725191072672,1.32189318,58232.0,58231.0,0.17479066]
[1725191073128,0.97844018,58232.0,58231.0,0.17479066]
[1725191073759,0.19153418,58232.0,58231.0,0.17479066]
[1725191073971,0.001818,58232.0,58231.0,0.17479066]
[1725191074402,0.000818,58232.0,58231.0,0.17478986]
[1725191074617,0.001818,58232.0,58231.0,0.20578986]
[1725191074832,0.001818,58232.0,58231.0,0.20922393]
[1725191075489,0.000818,58232.0,58231.0,0.20222393]
[1725191075706,0.000818,58232.0,58231.0,0.21022393]
[1725191075944,0.001818,58232.0,58231.0,0.20922393]
[1725191076172,0.000818,58232.0,58231.0,0.20122393]
[1725191076429,0.000818,58232.0,58231.0,0.21422393]
[1725191076430,0.001818,58232.0,58231.0,0.21422393]
[1725191076874,0.001818,58232.0,58231.0,0.21078986]
[1725191077322,0.173544,58232.0,58231.0,0.21078986]
[1725191077536,0.274544,58232.0,58231.0,0.21878986]
[1725191077758,0.273544,58232.0,58231.0,0.20578986]
[1725191077966,0.101818,58232.0,58231.0,0.20578986]
[1725191078181,0.102818,58232.0,58231.0,0.39551886]
[1725191078628,0.001818,58232.0,58231.0,0.38251886]
[1725191078890,0.516997,58232.0,58231.0,0.20578986]
[1725191079097,0.516997,58232.0,58231.0,0.21878986]
[1725191079098,0.617997,58232.0,58231.0,0.21878986]
[1725191079796,1.304903,58232.0,58231.0,0.1798998]
[1725191080017,1.453713,58232.0,58231.0,0.1798998]
[1725191086270,1.797166,58232.0,58231.0,0.0268998]
[1725191089050,1.796166,58232.0,58231.0,0.0138998]
[1725191089272,1.795166,58232.0,58231.0,0.0068998]
[1725191089487,1.81315618,58232.0,58231.0,0.0068998]
[1725191089704,1.81415618,58232.0,58231.0,0.0138998]
[1725191089935,1.81415618,58232.0,58231.0,0.0068998]
[1725191090776,1.81415618,58232.0,58231.0,0.0058998]
[1725191091260,1.81415618,58232.0,58231.0,0.0068998]
[1725191091472,1.81515618,58232.0,58231.0,0.0138998]
[1725191091694,1.81515618,58232.0,58231.0,0.0128998]
[1725191091900,5.74184518,58232.0,58231.0,0.0058998]
[1725191092113,5.74184518,58232.0,58231.0,0.0088998]
[1725191092325,5.74284518,58232.0,58231.0,0.0158998]
[1725191092584,5.74284518,58232.0,58231.0,0.0058998]
[1725191092793,5.74284518,58232.0,58231.0,0.0158998]
[1725191093008,5.74384518,58232.0,58231.0,0.0158998]
[1725191093219,5.74284518,58232.0,58231.0,0.0088998]
[1725191093655,5.61798718,58232.0,58231.0,0.0088998]
[1725191093872,5.47798718,58232.0,58231.0,0.0088998]
[1725191094341,4.46432918,58232.0,58231.0,0.0088998]
[1725191094554,2.19084218,58232.0,58231.0,0.0088998]
[1725191094760,2.19084218,58232.0,58231.0,0.0058998]
[1725191095225,2.19184218,58232.0,58231.0,0.0158998]
[1725191095458,2.18984218,58232.0,58231.0,0.01784978]
[1725191095671,2.18984218,58232.0,58231.0,0.02184978]
[1725191095883,2.19084218,58232.0,58231.0,0.02184978]
[1725191096100,2.19084218,58232.0,58231.0,0.01784978]
[1725191096337,2.19184218,58232.0,58231.0,0.02484978]
[1725191096540,2.19184218,58232.0,58231.0,0.02184978]
[1725191098211,2.19184218,58232.0,58231.0,0.02484978]
[1725191102107,2.19184218,58232.0,58231.0,0.03484978]
[1725191103819,3.53397118,58232.0,58231.0,0.03484978]
[1725191104073,3.53397118,58232.0,58231.0,0.0278998]
[1725191104500,3.53397118,58232.0,58231.0,0.0258998]
[1725191105151,3.53397118,58232.0,58231.0,0.0278998]
[1725191105386,3.30762318,58232.0,58231.0,0.0278998]
[1725191106053,3.05609188,58232.0,58231.0,0.0278998]
[1725191106264,3.05609188,58232.0,58231.0,0.04437978]
[1725191106472,2.93232088,58232.0,58231.0,0.04237978]
[1725191107532,3.10404688,58232.0,58231.0,0.04237978]
[1725191111205,3.10404688,58232.0,58231.0,0.04437978]
[1725191112882,3.10404688,58232.0,58231.0,0.04237978]
[1725191113100,3.10404688,58232.0,58231.0,0.04437978]
[1725191114482,3.44540988,58232.0,58231.0,0.04437978]
[1725191114698,3.28836488,58232.0,58231.0,0.04437978]
[1725191115119,3.20659488,58232.0,58231.0,0.04437978]
[1725191115845,3.20741288,58232.0,58231.0,0.04437978]
[1725191116997,3.01895488,58232.0,58231.0,0.04437978]
[1725191117724,3.01895488,58232.0,58231.0,0.04237978]
[1725191117953,2.83700488,58232.0,58231.0,0.04437978]
[1725191118634,2.83700488,58232.0,58231.0,0.04237978]
[1725191118872,2.83700488,58232.0,58231.0,0.04437978]
[1725191119107,2.83700488,58232.0,58231.0,0.04237978]
[1725191119367,2.91599218,58232.0,58231.0,0.04437978]
[1725191119814,2.91599218,58232.0,58231.0,0.04237978]
[1725191123163,2.91599218,58232.0,58231.0,0.04437978]
[1725191123629,2.91599218,58232.0,58231.0,0.04237978]
[1725191124817,2.91599218,58232.0,58231.0,0.04437978]
[1725191125072,2.91599218,58232.0,58231.0,0.04237978]
[1725191125296,2.91599218,58232.0,58231.0,0.04437978]
[1725191125514,2.91599218,58232.0,58231.0,0.04237978]
[1725191126668,2.91599218,58232.0,58231.0,0.04437978]
[1725191126890,2.91599218,58232.0,58231.0,0.04237978]
[1725191128257,2.91599218,58232.0,58231.0,0.0258998]
[1725191128502,2.91599218,58232.0,58231.0,0.0208998]
[1725191128769,2.98099218,58232.0,58231.0,0.0208998]
[1725191128995,2.98099218,58232.0,58231.0,0.0158998]
[1725191129213,2.98099218,58232.0,58231.0,0.0258998]
[1725191129443,2.91599218,58232.0,58231.0,0.0258998]
[1725191129675,1.40474818,58232.0,58231.0,0.10413978]
[1725191129911,1.04657418,58232.0,58231.0,0.10325978]
[1725191131299,1.14657418,58232.0,58231.0,0.10325978]
[1725191136952,0.80312118,58232.0,58231.0,0.17975978]
[1725191137167,0.63598718,58232.0,58231.0,0.17975978]
[1725191137810,0.617997,58232.0,58231.0,0.17975978]
[1725191138212,1.304903,58232.0,58231.0,0.0250198]
[1725191138419,1.93993585,58232.0,58231.0,0.0250198]
[1725191139721,1.891548,58232.0,58231.0,0.0250198]
[1725191140586,2.439906,58232.0,58231.0,0.0270198]
[1725191141087,2.299906,58232.0,58231.0,0.0270198]
[1725191142080,2.299906,58232.0,58231.0,0.0250198]
[1725191142531,2.643359,58232.0,58231.0,0.0150198]
[1725191146354,2.709859,58232.0,58231.0,0.0150198]
[1725191146587,2.709859,58232.0,58231.0,0.0100198]
[1725191146777,2.709859,58232.0,58231.0,0.0150198]
[1725191147620,2.709859,58232.0,58231.0,0.0250198]
[1725191152186,2.366406,58232.0,58231.0,0.0250198]
[1725191153011,4.142311,58232.0,58231.0,0.0270198]
[1725191153230,4.24516718,58232.0,58231.0,0.0270198]
[1725191153650,4.24516718,58232.0,58231.0,0.03617178]
[1725191154275,3.83521418,58232.0,58231.0,0.03617178]
[1725191154495,2.13305218,58232.0,58231.0,0.03617178]
[1725191158255,2.13305218,58232.0,58231.0,0.03417178]
[1725191159118,1.96299518,58232.0,58231.0,0.03417178]
[1725191160604,1.96299518,58232.0,58231.0,0.03617178]
[1725191162807,1.96299518,58232.0,58231.0,0.03417178]
[1725191163664,2.53428118,58232.0,58231.0,0.03417178]
[1725191163879,1.34268018,58232.0,58231.0,0.09867178]
[1725191164314,1.34268018,58232.0,58231.0,0.10067178]
[1725191164720,1.34268018,58232.0,58231.0,0.17657178]
[1725191165611,0.002818,58232.0,58231.0,0.17657178]
[1725191165832,0.174544,58232.0,58231.0,0.17657178]
[1725191166488,0.173544,58232.0,58231.0,0.16957178]
[1725191166727,0.000818,58232.0,58231.0,0.34130078]
[1725191166930,0.000818,58232.0,58231.0,0.42760095]
[1725191166931,0.001818,58232.0,58231.0,0.42760095]
[1725191167129,0.001818,58232.0,58231.0,0.37330078]
[1725191167351,0.001818,58232.0,58231.0,0.4175849]
[1725191167562,0.001818,58232.0,58231.0,0.4205849]
[1725191168005,0.001818,58232.0,58231.0,0.4195849]
[1725191168265,0.001818,58232.0,58231.0,0.7610439]
[1725191168463,0.002818,58232.0,58231.0,0.72375978]
[1725191168866,0.002818,58232.0,58231.0,0.7750326]
[1725191169302,0.002818,58232.0,58231.0,0.7910326]
[1725191169441,0.002818,58232.0,58231.0,0.73775978]
[1725191170025,0.002818,58232.0,58231.0,0.7890326]
[1725191170228,0.002818,58232.0,58231.0,0.73775978]
[1725191171961,0.002818,58232.0,58231.0,0.39430078]
[1725191182561,0.02531654,58236.0,58235.0,0.007]
[1725191182738,0.171715,58236.0,58235.0,0.06943008]
[1725191182939,0.332332,58236.0,58235.0,0.06943008]
[1725191183516,0.295942,58236.0,58235.0,0.06943008]
[1725191183933,0.297942,58236.0,58235.0,0.15863008]
[1725191184138,0.297942,58236.0,58235.0,0.16863008]
[1725191184783,0.397942,58236.0,58235.0,0.16863008]
[1725191185770,0.39876,58236.0,58235.0,0.16863008]
[1725191188477,0.274533,58236.0,58235.0,0.16863008]
[1725191189332,0.274134,58236.0,58235.0,0.16863008]
[1725191190645,0.274134,58236.0,58235.0,0.24633008]
[1725191191592,0.102818,58236.0,58235.0,0.10743008]
[1725191191827,0.978942,58236.0,58235.0,0.10743008]
[1725191192005,1.438972,58236.0,58235.0,0.10743008]
[1725191192231,0.752112,58236.0,58235.0,0.10743008]
[1725191192491,0.832787,58236.0,58235.0,0.10743008]
[1725191192720,0.274533,58236.0,58235.0,0.10743008]
[1725191194311,0.617963,58236.0,58235.0,0.10743008]
[1725191197510,0.617963,58236.0,58235.0,0.10832988]
[1725191200850,0.61682371,58236.0,58235.0,0.10832988]
[1725191202735,0.61682371,58236.0,58235.0,0.12728274]
[1725191204868,0.33424417,58236.0,58235.0,0.12728274]
[1725191205087,0.171715,58236.0,58235.0,0.12728274]
[1725191206849,0.271715,58236.0,58235.0,0.12728274]
[1725191208761,0.881552,58236.0,58235.0,0.10832988]
[1725191208988,0.864952,58236.0,58235.0,0.0688998]
[1725191209415,0.853029,58236.0,58235.0,0.0688998]
[1725191209660,0.853847,58236.0,58235.0,0.0688998]
[1725191210349,0.510417,58236.0,58235.0,0.0688998]
[1725191210479,0.510417,58236.0,58235.0,0.09949227]
[1725191211836,1.197277,58236.0,58235.0,0.09949227]
[1725191212052,1.258077,58236.0,58235.0,0.07649227]
[1725191212305,1.258077,58236.0,58235.0,0.0458998]
[1725191214609,1.233824,58236.0,58235.0,0.0458998]
[1725191215468,0.959393,58236.0,58235.0,0.0971975]
[1725191215675,0.959393,58236.0,58235.0,0.07499092]
[1725191219611,0.959393,58236.0,58235.0,0.0458998]
[1725191219812,0.615963,58236.0,58235.0,0.0458998]
[1725191220233,0.615963,58236.0,58235.0,0.0438998]
[1725191220461,0.615963,58236.0,58235.0,0.09719897]
[1725191220671,0.615963,58236.0,58235.0,0.0458998]
[1725191220879,0.615963,58236.0,58235.0,0.07449159]
[1725191221308,0.615963,58236.0,58235.0,0.12579076]
[1725191221522,0.615963,58236.0,58235.0,0.07449159]
[1725191223039,0.959393,58236.0,58235.0,0.07449159]
[1725191224437,0.615963,58236.0,58235.0,0.07449159]
[1725191225504,0.615963,58236.0,58235.0,0.12580075]
[1725191225632,0.615963,58236.0,58235.0,0.09720896]
[1725191228014,0.615963,58236.0,58235.0,0.0458998]
[1725191228241,0.515097,58242.0,58235.0,0.75216562]
[1725191228461,0.515069,58245.0,58244.0,0.017]
[1725191228679,0.85845,58245.0,58244.0,0.017]
[1725191229573,0.85845,58245.0,58244.0,0.015]
[1725191230003,1.225797,58245.0,58244.0,0.015]
[1725191230232,1.212634,58245.0,58244.0,0.024]
[1725191230442,1.312634,58245.0,58244.0,0.024]
[1725191231777,1.312634,58245.0,58244.0,0.028]
[1725191231999,1.207696,58245.0,58244.0,0.028]
[1725191232201,0.864315,58245.0,58244.0,0.028]
[1725191232413,0.865133,58245.0,58244.0,0.028]
[1725191232846,0.80334491,58245.0,58244.0,0.028]
[1725191233058,0.78585291,58245.0,58244.0,0.028]
[1725191234361,0.64383391,58245.0,58244.0,0.028]
[1725191234769,0.64383391,58245.0,58244.0,0.0479703]
[1725191235687,0.64383391,58245.0,58244.0,0.028]
[1725191236703,0.82635991,58245.0,58244.0,0.028]
[1725191237061,0.79381991,58245.0,58244.0,0.028]
[1725191237274,0.45043891,58245.0,58244.0,0.028]
[1725191237476,0.21126027,58245.0,58244.0,0.028]
[1725191237672,0.17775091,58245.0,58244.0,0.0479702]
[1725191237881,0.34943891,58245.0,58244.0,0.0479702]
[1725191239018,0.17775091,58245.0,58244.0,0.0479702]
[1725191239178,0.02776491,58245.0,58244.0,0.0479702]
[1725191239767,0.22890591,58245.0,58244.0,0.0479702]
[1725191239974,0.30959391,58245.0,58244.0,0.0479702]
[1725191240184,0.12776491,58245.0,58244.0,0.0479702]
[1725191241206,0.02776491,58245.0,58244.0,0.0479702]
[1725191241488,0.02776491,58245.0,58244.0,0.2196612]
[1725191242104,0.02776491,58245.0,58244.0,0.2156612]
[1725191242595,0.02876491,58245.0,58244.0,0.0579702]
[1725191243187,0.02876491,58245.0,58244.0,0.0489702]
[1725191243410,0.02876491,58245.0,58244.0,0.0629702]
[1725191244475,0.14226691,58245.0,58244.0,0.0629702]
[1725191244678,0.23986891,58245.0,58244.0,0.0629702]
[1725191245953,0.12876491,58245.0,58244.0,0.0629702]
[1725191247037,0.23716691,58245.0,58244.0,0.0629702]
[1725191247256,0.12876491,58245.0,58244.0,0.0629702]
[1725191248103,0.12706491,58245.0,58244.0,0.0629702]
[1725191249176,0.29875291,58245.0,58244.0,0.0629702]
[1725191256042,0.29875291,58245.0,58244.0,0.06387]
[1725191256248,0.29957091,58245.0,58244.0,0.06387]
[1725191260028,0.29957091,58245.0,58244.0,0.08286762]
[1725191260206,0.64294791,58245.0,58244.0,0.08286762]
[1725191260342,0.64294791,58245.0,58244.0,0.06387]
[1725191260588,0.64294791,58245.0,58244.0,0.08286795]
[1725191261028,0.64294791,58245.0,58244.0,0.08286854]
[1725191261221,0.12788291,58245.0,58244.0,0.08286854]
[1725191262453,0.29957091,58245.0,58244.0,0.08286854]
[1725191262925,0.29957091,58245.0,58244.0,0.14656854]
[1725191263193,0.29957091,58245.0,58244.0,0.22336854]
[1725191263827,0.12788291,58245.0,58244.0,0.20437]
[1725191264016,0.02788291,58245.0,58244.0,0.2463679]
[1725191264225,0.12788291,58245.0,58244.0,0.2463679]
[1725191265759,0.12788291,58245.0,58244.0,0.22737]
[1725191265890,0.12788291,58245.0,58244.0,0.24636703]
[1725191267385,0.343362,58248.0,58244.0,0.24636703]
[1725191267589,0.343362,58248.0,58245.0,0.05327307]
[1725191267791,0.515041,58248.0,58247.0,0.01]
[1725191268369,0.515041,58248.0,58247.0,0.015]
[1725191269508,0.615041,58248.0,58247.0,0.015]
[1725191269712,0.615041,58248.0,58247.0,0.04076431]
[1725191270164,0.615041,58248.0,58247.0,0.05476431]
[1725191270292,0.615041,58248.0,58247.0,0.06876431]
[1725191271767,0.615041,58248.0,58247.0,0.13346431]
[1725191273905,0.64198618,58248.0,58247.0,0.13346431]
[1725191277728,0.64198618,58248.0,58247.0,0.06876431]
[1725191278930,0.64198618,58248.0,58247.0,0.12019193]
[1725191279406,0.64198618,58248.0,58247.0,0.12021893]
[1725191282511,0.64280418,58248.0,58247.0,0.12021893]
[1725191283000,0.64280418,58248.0,58247.0,0.12022072]
[1725191283238,0.64280418,58248.0,58247.0,0.06876431]
[1725191284671,0.98616618,58248.0,58247.0,0.06876431]
[1725191285844,0.98616618,58248.0,58247.0,0.12022072]
[1725191288119,0.98616618,58248.0,58247.0,0.12021786]
[1725191290362,0.98616618,58248.0,58247.0,0.13922605]
[1725191290768,0.98616618,58248.0,58247.0,0.13922616]
[1725191291428,0.98616618,58248.0,58247.0,0.1392263]
[1725191293074,0.64280418,58248.0,58247.0,0.13922883]
[1725191294423,0.64280418,58248.0,58247.0,0.13922847]
[1725191295969,0.29944218,58248.0,58247.0,0.13922847]
[1725191296170,0.64280118,58248.0,58247.0,0.13922847]
[1725191296769,0.64280118,58248.0,58247.0,0.21752847]
[1725191297665,0.64280118,58248.0,58247.0,0.13922847]
[1725191298128,0.64280118,58248.0,58247.0,0.13926552]
[1725191299163,1.47151918,58248.0,58247.0,0.06200808]
[1725191299397,1.97023418,58248.0,58247.0,0.043]
[1725191300170,1.89369818,58248.0,58247.0,0.043]
[1725191300584,1.87976118,58248.0,58247.0,0.043]
[1725191301006,1.67310118,58248.0,58247.0,0.043]
[1725191301207,1.47151918,58248.0,58247.0,0.043]
[1725191301408,1.39441918,58248.0,58247.0,0.043]
[1725191303152,1.39441918,58248.0,58247.0,0.05253937]
[1725191305458,1.32951918,58248.0,58247.0,0.05253937]
[1725191308695,1.46818218,58248.0,58247.0,0.05253937]
[1725191308914,1.45158218,58248.0,58247.0,0.05253937]
[1725191309351,1.10822318,58248.0,58247.0,0.05253937]
[1725191309568,0.98616018,58248.0,58247.0,0.05253937]
[1725191310479,1.22038218,58248.0,58247.0,0.05253937]
[1725191310695,1.20597118,58248.0,58247.0,0.05253937]
[1725191311539,1.11307918,58248.0,58247.0,0.05253937]
[1725191311752,0.98616018,58248.0,58247.0,0.05253937]
[1725191313213,0.64280118,58248.0,58247.0,0.05253937]
[1725191316169,0.61280118,58248.0,58247.0,0.05253937]
[1725191316361,0.61280118,58248.0,58247.0,0.043]
[1725191323406,1.00336818,58248.0,58247.0,0.043]
[1725191323642,0.98959818,58248.0,58247.0,0.043]
[1725191324115,0.87249818,58248.0,58247.0,0.043]
[1725191324334,0.87249818,58248.0,58247.0,0.05262717]
[1725191324335,0.85803818,58248.0,58247.0,0.05262717]
[1725191325019,0.83084818,58248.0,58247.0,0.05262717]
[1725191325736,1.17420718,58248.0,58247.0,0.05262717]
[1725191326162,0.83084818,58248.0,58247.0,0.05262717]
[1725191326372,0.83084818,58248.0,58247.0,0.043]
[1725191326373,1.23930718,58248.0,58247.0,0.043]
[1725191331757,1.66026618,58248.0,58247.0,0.033]
[1725191332374,1.67825636,58248.0,58247.0,0.033]
[1725191333448,2.02161536,58248.0,58247.0,0.033]
[1725191333651,1.67825636,58248.0,58247.0,0.028]
[1725191333856,1.46020936,58248.0,58247.0,0.028]
[1725191334292,1.80356836,58248.0,58247.0,0.028]
[1725191334496,5.43353936,58248.0,58247.0,0.014]
[1725191334698,5.11353936,58248.0,58247.0,0.014]
[1725191334913,5.11353936,58248.0,58247.0,0.023]
[1725191335319,5.11353936,58248.0,58247.0,0.009]
[1725191335877,5.45689836,58248.0,58247.0,0.023]
[1725191336502,5.45689836,58248.0,58244.0,0.0008998]
[1725191336503,1.687896,58245.0,58244.0,0.0008998]
[1725191336709,6.737896,58245.0,58244.0,0.0008998]
[1725191336928,6.83824392,58245.0,58244.0,0.0008998]
[1725191337160,7.18162092,58245.0,58244.0,0.0008998]
[1725191337402,7.23000877,58245.0,58244.0,0.0008998]
[1725191337825,7.23400877,58245.0,58244.0,0.0018998]
[1725191338058,6.89063177,58245.0,58244.0,0.0018998]
[1725191338249,7.23400877,58245.0,58244.0,0.0018998]
[1725191338459,7.40256041,58245.0,58244.0,0.0018998]
[1725191338676,7.58600877,58245.0,58244.0,0.0018998]
[1725191338888,7.58600877,58245.0,58244.0,0.0028998]
[1725191338889,7.59600877,58245.0,58244.0,0.0028998]
[1725191339306,1.688135,58236.0,58235.0,0.0008998]
[1725191339575,1.788135,58236.0,58235.0,0.0008998]
[1725191340022,1.81509105,58236.0,58235.0,0.0008998]
[1725191340256,2.15852105,58236.0,58235.0,0.0008998]
[1725191340438,7.20852105,58236.0,58235.0,0.0008998]
[1725191340792,7.21152105,58236.0,58235.0,0.0008998]
[1725191341231,7.20852105,58236.0,58235.0,0.0008998]
[1725191342103,7.181565,58236.0,58235.0,0.0008998]
[1725191342740,7.184565,58236.0,58235.0,0.0008998]
[1725191345137,7.21152291,58236.0,58235.0,0.0008998]
[1725191347276,2.16152291,58236.0,58235.0,0.0008998]
[1725191347480,7.22951309,58236.0,58235.0,0.0008998]
[1725191350830,6.98436176,58236.0,58235.0,0.0008998]
[1725191351046,7.15607676,58236.0,58235.0,0.0008998]
[1725191351243,7.12911885,58236.0,58235.0,0.0008998]
[1725191354332,7.15607583,58236.0,58235.0,0.0008998]
[1725191361360,7.12911885,58236.0,58235.0,0.0008998]
[1725191364434,7.15607661,58236.0,58235.0,0.0008998]
[1725191364824,7.21496152,58236.0,58235.0,0.0008998]
[1725191366023,7.21696152,58236.0,58235.0,0.0008998]
[1725191366227,7.21496152,58236.0,58235.0,0.0008998]
[1725191367490,7.38551316,58236.0,58235.0,0.0008998]
[1725191367699,7.26534937,58236.0,58235.0,0.0008998]
[1725191368378,7.26616737,58236.0,58235.0,0.0008998]
[1725191368620,7.26416737,58236.0,58235.0,0.0008998]
[1725191369504,7.13817952,58236.0,58235.0,0.0008998]